fUSD/lending_fUSD_20240601
["ID","MTS","AMOUNT","RATE_DAILY","PERIOD"]
[328355122,1717224631657,-2004.73823716,0.00016047,2]
[328355123,1717224631667,-4753.56216164,0.00016047,2]
[328355124,1717224631676,-10436.69551828,0.0001605,2]
[328355125,1717224631685,-536.91822658,0.0001605,2]
[328355126,1717224631696,-536.91822658,0.0001605,2]
[328355127,1717224631704,-2367.15501921,0.00016051,2]
[328355128,1717224631715,-155.0,0.00016052,2]
[328355129,1717224631725,-150.0,0.00016062,2]
[328355130,1717224631735,-150.0,0.00016062,2]
[328355131,1717224631744,-855.39109037,0.00016238,2]
[328355132,1717224631753,-499.99,0.00016238,2]
[328355133,1717224631763,-430.49446992,0.00016239,2]
[328355134,1717224631774,-150.0,0.00016301,2]
[328355135,1717224631783,-155.0,0.0001705,2]
[328355136,1717224631791,-7531.74673928,0.00017054,2]
[328355137,1717224631801,-500.0,0.00017147,2]
[328355138,1717224631810,-500.0,0.00017147,2]
[328355139,1717224631820,-500.0,0.00017147,2]
[328355140,1717224631831,-568.0,0.00017147,2]
[328355141,1717224631840,-532.73745398,0.00017253,2]
[328355142,1717224631850,-1840.69431706,0.00017255,2]
[328355143,1717224631860,-210.0,0.00017668,2]
[328355144,1717224631869,-172.01,0.00018449,2]
[328355145,1717224631878,-293.0,0.00019435,2]
[328355146,1717224631887,-172.23,0.00019482,2]
[328355147,1717224631897,-3746.35761483,0.0002,2]
[328355148,1717224631910,-4891.93757754,0.0002,2]
[328355149,1717224631919,-172.01,0.00020755,2]
[328355150,1717224631929,-172.23,0.00021918,2]
[328355151,1717224631938,-23880.0,0.00022904,2]
[328355152,1717224631949,-182.97,0.00022968,2]
[328355153,1717224631959,-172.01,0.00023062,2]
[328355154,1717224631968,-1000.0,0.00023062,2]
[328355155,1717224631978,-442.4,0.00023095,2]
[328355156,1717224631988,-250.0,0.0002421,2]
[328355160,1717224631997,-167.61,0.00024331,2]
[328355164,1717224632007,-172.23,0.00024353,2]
[328355168,1717224632017,-159.39,0.00024384,2]
[328355171,1717224632026,-150.0,0.00024443,2]
[328355174,1717224632036,-200.0,0.00024491,2]
[328355176,1717224632045,-163.0,0.00024491,2]
[328355179,1717224632054,-250.0,0.00024543,2]
[328355180,1717224632063,-28453.7,0.00024548,2]
[328355182,1717224632073,-6492.48,0.00024616,2]
[328355184,1717224632084,-4263.6,0.00024715,2]
[328355185,1717224632093,-1050.0,0.00025,2]
[328355186,1717224632103,-442.4,0.00025359,2]
[328355187,1717224632112,-172.01,0.00025368,2]
[328355188,1717224632121,-1000.0,0.00025944,2]
[328355189,1717224632131,-1000.0,0.00026028,2]
[328355190,1717224632140,-1000.0,0.00026028,2]
[328355191,1717224632150,-1000.0,0.00026028,2]
[328355192,1717224632158,-1000.0,0.00026028,2]
[328355193,1717224632167,-1000.0,0.00026028,2]
[328355194,1717224632176,-1000.0,0.00026028,2]
[328355195,1717224632185,-1000.0,0.00026028,2]
[328355196,1717224632195,-1000.0,0.00026028,2]
[328355197,1717224632204,-1000.0,0.00026028,2]
[328355198,1717224632214,-1000.0,0.00026028,2]
[328355199,1717224632223,-1000.0,0.00026028,2]
[328355200,1717224632232,-1000.0,0.00026028,2]
[328355201,1717224632241,-1000.0,0.00026028,2]
[328355202,1717224632250,-1000.0,0.00026028,2]
[328355203,1717224632260,-1000.0,0.00026028,2]
[328355204,1717224632271,-1000.0,0.00026028,2]
[328355205,1717224632280,-1000.0,0.00026028,2]
[328355206,1717224632289,-1000.0,0.00026028,2]
[328355207,1717224632299,-1000.0,0.00026028,2]
[328355208,1717224632308,-1000.0,0.00026028,2]
[328355209,1717224632317,-332.0,0.00026028,2]
[328355210,1717224632326,-601.82,0.00026108,2]
[328355211,1717224632494,-1280.12,0.00026335,2]
[328355212,1717224632504,-168.33,0.00026368,2]
[328355213,1717224632514,-250.0,0.00026618,2]
[328355214,1717224632524,-172.23,0.00026788,2]
[328355215,1717224632533,-300.0,0.00027079,2]
[328355216,1717224632543,-6492.48,0.00027356,2]
[328355217,1717224632552,-8595.59,0.00027397,2]
[328355218,1717224632562,-442.4,0.00027623,2]
[328355219,1717224632571,-172.01,0.00027674,2]
[328355220,1717224632581,-394.26,0.00028355,2]
[328355221,1717224632590,-300.0,0.00028772,2]
[328355222,1717224632599,-1000.0,0.00028827,2]
[328355223,1717224632609,-2052.95118628,0.00029,2]
[328355224,1717224632620,-198.12573104,0.00029201,2]
[328355225,1717224632629,-172.23,0.00029223,2]
[328355226,1717224632639,-189.37149397,0.00029301,2]
[328355227,1717224632648,-601.82,0.00029371,2]
[328355228,1717224632658,-456.45350885,0.00029635,2]
[328355229,1717224632668,-198.12573104,0.00029645,2]
[328355230,1717224632678,-189.37149391,0.00029734,2]
[328355231,1717224632687,-4300.0793,0.00029886,2]
[328355232,1717224632696,-3847.9766,0.00029886,2]
[328355233,1717224632706,-442.4,0.00029887,2]
[328355234,1717224632715,-155.18999445,0.00029966,2]
[328355235,1717224632725,-100000.0,0.00029967,2]
[328355236,1717224632735,-751.61833958,0.00029968,2]
[328355237,1717224632745,-7435.4918505,0.0003,4]
[328355238,1717224632755,-198.12573104,0.0003009,10]
[328355239,1717224632764,-6492.48,0.00030095,2]
[328355240,1717224632774,-189.37149391,0.00030167,10]
[328355241,1717224632783,-400.86507054,0.00030464,2]
[328355242,1717224632792,-198.12573104,0.00030534,10]
[328355243,1717224632801,-189.37149391,0.00030601,10]
[328355244,1717224632811,-140689.2572,0.00030897,2]
[328355245,1717224632820,-168.66820434,0.00030915,7]
[328355246,1717224632831,-198.12573104,0.00030978,10]
[328355247,1717224632840,-357.0,0.00030997,2]
[328355248,1717224632850,-440.0,0.00030997,2]
[328355249,1717224632859,-1266.0,0.00030997,2]
[328355250,1717224632868,-1647.0,0.00030997,2]
[328355251,1717224632877,-614.0,0.00030997,2]
[328355252,1717224632887,-1224.0,0.00030997,2]
[328355253,1717224632896,-150.0,0.00030997,2]
[328355254,1717224632908,-5772.0,0.00030997,2]
[328355255,1717224632918,-32580.84441874,0.0003103,2]
[328355256,1717224632927,-189.37149391,0.00031034,10]
[328355257,1717224632936,-198.12573104,0.00031423,10]
[328355258,1717224632947,-189.37149391,0.00031467,10]
[328355259,1717224632957,-1000.0,0.0003171,2]
[328355260,1717224632966,-8124.14340545,0.000318,2]
[328355261,1717224632976,-198.12573104,0.00031867,10]
[328355262,1717224632987,-200.0,0.000319,11]
[328355263,1717224632996,-189.37149391,0.000319,10]
[328355264,1717224633006,-500.0,0.00032,11]
[328355265,1717224633016,-154.79042523,0.00032042,7]
[328355266,1717224633026,-153.69998984,0.00032054,7]
[328355267,1717224633037,-700.0,0.000321,11]
[328355268,1717224633046,-442.4,0.00032151,2]
[328355269,1717224633055,-10939.3548233,0.00032164,4]
[328355270,1717224633065,-150.0,0.00032183,2]
[328355271,1717224633074,-1000.0,0.000322,11]
[328355272,1717224633083,-150.0,0.00032234,2]
[328355273,1717224633092,-1300.0,0.000323,11]
[328355274,1717224633101,-198.12573104,0.00032311,10]
[328355275,1717224633110,-416.39,0.00032329,2]
[328355276,1717224633119,-189.37149391,0.00032334,10]
[328355277,1717224633128,-200.0,0.000324,11]
[328355278,1717224633137,-150.0,0.00032442,2]
[328355279,1717224633147,-150.0,0.00032478,2]
[328355280,1717224633156,-200.0,0.000325,11]
[328355281,1717224633165,-2284.96,0.00032548,30]
[328355282,1717224633174,-150.0,0.00032556,2]
[328355283,1717224633183,-150.0,0.00032567,2]
[328355284,1717224633192,-200.0,0.000326,11]
[328355285,1717224633201,-601.82,0.00032635,2]
[328355286,1717224633210,-1411.9581,0.0003264,2]
[328355287,1717224633220,-150.0,0.00032656,2]
[328355288,1717224633229,-200.0,0.000327,11]
[328355289,1717224633239,-150.0,0.00032725,2]
[328355290,1717224633248,-198.12573104,0.00032756,10]
[328355291,1717224633257,-7500.0,0.00032756,2]
[328355292,1717224633267,-196.01330898,0.00032756,2]
[328355293,1717224633276,-387.88076153,0.00032756,2]
[328355294,1717224633285,-189.37149391,0.00032767,10]
[328355295,1717224633295,-150.0,0.00032779,2]
[328355296,1717224633304,-150.0,0.00032794,2]
[328355297,1717224633313,-152.9824382,0.00032795,7]
[328355298,1717224633323,-779.0,0.000328,11]
[328355299,1717224633332,-387.88076148,0.00032819,2]
[328355300,1717224633342,-150.0,0.00032827,2]
[328355301,1717224633351,-150.0,0.00032835,2]
[328355302,1717224633360,-55252.81027962,0.00032856,2]
[328355303,1717224633370,-1040.82619804,0.00032856,4]
[328355304,1717224633379,-20242.42808686,0.00032856,4]
[328355305,1717224633388,-746.29575427,0.00032856,4]
[328355306,1717224633398,-300.70778379,0.00032856,2]
[328355307,1717224633407,-349.04010262,0.00032856,10]
[328355308,1717224633416,-196.01330896,0.00032867,2]
[328355309,1717224633425,-387.88076148,0.00032883,2]
[328355310,1717224633435,-25801.21176955,0.0003289,2]
[328355311,1717224633444,-200.0,0.00032902,10]
[328355312,1717224633453,-158.39894444,0.00032904,30]
[328355313,1717224633463,-150.0,0.00032905,2]
[328355314,1717224633472,-150.0,0.00032914,2]
[328355315,1717224633481,-387.88076148,0.00032946,2]
[328355316,1717224633490,-150.0,0.0003295,2]
[328355317,1717224633500,-253.58907777,0.00032965,4]
[328355318,1717224633509,-6245.57138907,0.00032966,2]
[328355319,1717224633520,-150.0,0.0003297,2]
[328355320,1717224633529,-150.0,0.00032971,2]
[328355321,1717224633539,-196.01330896,0.00032977,2]
[328355322,1717224633548,-150.0,0.00032979,2]
[328355323,1717224633558,-306.9110902,0.00033,5]
[328355324,1717224633567,-1008.43937681,0.00033,2]
[328355325,1717224633576,-11433.039955,0.00033,2]
[328355326,1717224633586,-2555.178386,0.00033,2]
[328355327,1717224633595,-387.88076148,0.0003301,2]
[328355328,1717224633604,-192.0,0.00033016,5]
[328355329,1717224633614,-150.0,0.00033019,2]
[328355330,1717224633623,-150.0,0.00033025,2]
[328355331,1717224633632,-150.0,0.00033032,2]
[328355332,1717224633642,-156.87,0.00033045,2]
[328355333,1717224633651,-387.88076148,0.00033073,2]
[328355334,1717224633661,-150.0,0.00033079,2]
[328355335,1717224633670,-196.01330896,0.00033088,2]
[328355336,1717224633680,-316.79788883,0.00033096,30]
[328355337,1717224633689,-1500.0,0.00033097,2]
[328355338,1717224633699,-150.0,0.00033098,2]
[328355339,1717224633708,-312.05530563,0.00033098,2]
[328355340,1717224633717,-35000.0,0.000331,2]
[328355341,1717224633726,-150.0,0.000331,7]
[328355342,1717224633735,-150.0,0.00033105,2]
[328355343,1717224633744,-312.05530558,0.00033111,2]
[328355344,1717224633753,-150.0,0.00033113,2]
[328355345,1717224633763,-312.05530558,0.00033124,2]
[328355346,1717224633774,-150.0,0.00033124,2]
[328355347,1717224633783,-270.07125422,0.00033132,4]
[328355348,1717224633792,-150.0,0.00033134,2]
[328355349,1717224633801,-312.05530558,0.00033136,2]
[328355350,1717224633810,-387.88076148,0.00033137,2]
[328355351,1717224633819,-312.05530558,0.00033149,2]
[328355352,1717224633828,-500.0,0.00033162,3]
[328355353,1717224633838,-312.05530558,0.00033162,2]
[328355354,1717224633847,-500.0,0.0003317,3]
[328355355,1717224633856,-312.05530558,0.00033175,2]
[328355356,1717224633865,-150.0,0.00033175,2]
[328355357,1717224633875,-500.0,0.00033179,3]
[328355358,1717224633884,-312.05530558,0.00033187,2]
[328355359,1717224633893,-500.0,0.00033188,3]
[328355360,1717224633905,-547.2426206,0.00033188,6]
[328355361,1717224633914,-1007.43334236,0.00033192,4]
[328355362,1717224633923,-547.2426206,0.00033193,6]
[328355363,1717224633933,-477.68280315,0.00033196,4]
[328355364,1717224633943,-2421.66529,0.00033198,5]
[328355365,1717224633952,-180.24310631,0.00033198,5]
[328355366,1717224633962,-162.63228823,0.00033198,5]
[328355367,1717224633971,-520.94607398,0.00033198,4]
[328355368,1717224633981,-196.01330896,0.00033198,2]
[328355369,1717224633991,-547.2426206,0.00033198,6]
[328355370,1717224634001,-1000.0,0.00033198,2]
[328355371,1717224634011,-2421.66529,0.00033198,5]
[328355372,1717224634023,-2421.66529,0.00033198,5]
[328355373,1717224634032,-2421.66529,0.00033199,5]
[328355374,1717224634042,-2421.66529,0.00033199,5]
[328355375,1717224634051,-2421.66529,0.00033199,5]
[328355376,1717224634060,-172.70768579,0.00033199,2]
[328355377,1717224634069,-151.0,0.00033199,7]
[328355378,1717224634079,-195.342266,0.00033199,7]
[328355379,1717224634088,-2421.66529,0.00033199,5]
[328355380,1717224634098,-2421.66529,0.00033199,5]
[328355381,1717224634107,-2421.66529,0.00033199,5]
[328355382,1717224634116,-2421.66529,0.000332,5]
[328355383,1717224634125,-2421.66529,0.000332,5]
[328355384,1717224634135,-500.0,0.000332,2]
[328355385,1717224634144,-2421.66529,0.000332,5]
[328355386,1717224634153,-162.63228822,0.000332,5]
[328355387,1717224634162,-500.58469936,0.000332,2]
[328355388,1717224634171,-151.0,0.000332,7]
[328355389,1717224634180,-151.0,0.000332,7]
[328355390,1717224634189,-151.0,0.000332,7]
[328355391,1717224634198,-154.394726,0.000332,7]
[328355392,1717224634208,-151.0,0.000332,7]
[328355393,1717224634217,-151.0,0.000332,7]
[328355394,1717224634226,-151.0,0.000332,7]
[328355395,1717224634235,-151.0,0.000332,7]
[328355396,1717224634244,-151.0,0.000332,7]
[328355397,1717224634253,-151.0,0.000332,7]
[328355398,1717224634262,-150.0,0.000332,2]
[328355399,1717224634273,-189.37149391,0.000332,10]
[328355400,1717224634282,-151.0,0.000332,7]
[328355401,1717224634291,-214.221971,0.000332,7]
[328355402,1717224634300,-151.0,0.000332,7]
[328355403,1717224634310,-214.221971,0.000332,7]
[328355404,1717224634319,-151.0,0.000332,7]
[328355405,1717224634327,-151.0,0.000332,7]
[328355406,1717224634336,-151.0,0.000332,7]
[328355407,1717224634346,-151.0,0.000332,7]
[328355408,1717224634355,-151.0,0.000332,7]
[328355409,1717224634363,-312.05530558,0.000332,2]
[328355410,1717224634372,-387.88076148,0.000332,2]
[328355411,1717224634382,-198.12573104,0.000332,10]
[328355412,1717224634391,-151.0,0.000332,7]
[328355413,1717224634399,-151.0,0.000332,7]
[328355414,1717224634408,-1796.34966073,0.000332,2]
[328355415,1717224634417,-7485.61161404,0.000332,2]
[328355416,1717224634427,-150.0,0.00033206,2]
[328355417,1717224634436,-150.0,0.00033231,2]
[328355418,1717224634445,-316.79788883,0.00033233,30]
[328355419,1717224634454,-150.0,0.0003325,2]
[328355420,1717224634463,-209.0,0.0003326,2]
[328355421,1717224634472,-212.0,0.0003326,2]
[328355422,1717224634482,-1500.0,0.00033261,2]
[328355423,1717224634491,-4543.26323883,0.00033268,4]
[328355424,1717224634499,-150.0,0.0003327,2]
[328355425,1717224634509,-184.15568136,0.00033277,2]
[328355426,1717224634518,-152.2,0.0003328,2]
[328355427,1717224634527,-578.64456906,0.00033287,20]
[328355428,1717224634536,-152.2,0.00033287,2]
[328355429,1717224634546,-72308.0,0.00033288,4]
[328355430,1717224634555,-573.0,0.00033288,4]
[328355431,1717224634564,-31877.0,0.00033288,4]
[328355432,1717224634573,-37151.0,0.00033288,4]
[328355433,1717224634582,-150.0,0.00033288,2]
[328355434,1717224634591,-150.0,0.00033288,2]
[328355435,1717224634600,-150.0,0.00033288,2]
[328355436,1717224634609,-150.0,0.00033288,2]
[328355437,1717224634619,-150.0,0.00033288,2]
[328355438,1717224634628,-301.0,0.00033288,2]
[328355439,1717224634637,-421.33,0.00033288,2]
[328355440,1717224634646,-1740.02,0.00033288,2]
[328355441,1717224634655,-151.0,0.00033288,7]
[328355442,1717224634664,-168.424934,0.00033288,7]
[328355443,1717224634673,-183.406169,0.00033288,7]
[328355444,1717224634682,-183.406169,0.00033288,7]
[328355445,1717224634692,-151.0,0.00033288,7]
[328355446,1717224634701,-154.252276,0.00033288,7]
[328355447,1717224634710,-151.0,0.00033288,7]
[328355448,1717224634719,-271.320216,0.00033288,7]
[328355449,1717224634728,-159.331288,0.00033288,7]
[328355450,1717224634738,-162.160766,0.00033288,7]
[328355451,1717224634747,-168.083284,0.00033288,7]
[328355452,1717224634756,-150.0,0.00033288,2]
[328355453,1717224634765,-198.588188,0.00033288,7]
[328355454,1717224634775,-214.221971,0.00033288,7]
[328355455,1717224634784,-214.221971,0.00033288,7]
[328355456,1717224634794,-151.0,0.00033288,7]
[328355457,1717224634803,-151.0,0.00033288,7]
[328355458,1717224634813,-151.0,0.00033288,7]
[328355459,1717224634822,-151.0,0.00033288,7]
[328355460,1717224634831,-151.0,0.00033288,7]
[328355461,1717224634840,-152.2,0.00033288,2]
[328355462,1717224634849,-55239.66755109,0.0003329,10]
[328355463,1717224634859,-348.10806015,0.0003329,5]
[328355464,1717224634868,-151.0,0.0003329,7]
[328355465,1717224634877,-183.406169,0.0003329,7]
[328355466,1717224634886,-183.406169,0.0003329,7]
[328355467,1717224634896,-184.15568136,0.0003329,2]
[328355468,1717224634909,-13178.92486053,0.00033294,2]
[328355469,1717224634918,-262.02892568,0.00033295,2]
[328355470,1717224634927,-900.0,0.00033295,3]
[328355471,1717224634936,-900.0,0.00033295,3]
[328355472,1717224634947,-900.0,0.00033295,3]
[328355473,1717224634956,-900.0,0.00033295,3]
[328355474,1717224634965,-900.0,0.00033295,3]
[328355475,1717224634976,-900.0,0.00033295,3]
[328355476,1717224634985,-900.0,0.00033295,3]
[328355477,1717224634995,-900.0,0.00033295,3]
[328355478,1717224635004,-900.0,0.00033295,3]
[328355479,1717224635015,-900.0,0.00033295,3]
[328355480,1717224635024,-500.0,0.00033295,11]
[328355481,1717224635034,-214.221971,0.00033295,7]
[328355482,1717224635043,-214.221971,0.00033295,7]
[328355483,1717224635052,-167.364924,0.00033295,7]
[328355484,1717224635061,-249.383033,0.00033295,7]
[328355485,1717224635072,-151.0,0.00033295,7]
[328355486,1717224635081,-500.0,0.00033296,11]
[328355487,1717224635090,-3440.73549181,0.00033296,5]
[328355488,1717224635099,-500.0,0.00033296,2]
[328355489,1717224635108,-500.0,0.00033296,2]
[328355490,1717224635117,-208.35964391,0.00033296,2]
[328355491,1717224635126,-405.27157232,0.00033296,11]
[328355492,1717224635136,-500.0,0.00033296,11]
[328355493,1717224635145,-500.0,0.00033296,11]
[328355494,1717224635154,-500.0,0.00033296,11]
[328355495,1717224635163,-500.0,0.00033296,11]
[328355496,1717224635172,-500.8143857,0.00033296,11]
[328355497,1717224635181,-534.95733472,0.00033296,4]
[328355498,1717224635191,-500.0,0.00033296,11]
[328355499,1717224635200,-500.0,0.00033296,11]
[328355500,1717224635209,-500.0,0.00033296,11]
[328355501,1717224635218,-493.33122725,0.00033296,11]
[328355502,1717224635228,-500.0,0.00033296,11]
[328355503,1717224635237,-500.0,0.00033296,11]
[328355504,1717224635246,-500.0,0.00033296,11]
[328355505,1717224635255,-500.0,0.00033296,11]
[328355506,1717224635272,-500.0,0.00033296,11]
[328355507,1717224635283,-572.80448265,0.00033296,11]
[328355508,1717224635291,-500.0,0.00033296,11]
[328355509,1717224635300,-500.0,0.00033296,11]
[328355510,1717224635310,-500.0,0.00033296,11]
[328355511,1717224635320,-500.0,0.00033296,11]
[328355512,1717224635329,-182.63000011,0.00033296,11]
[328355513,1717224635338,-175.6692624,0.00033296,11]
[328355514,1717224635347,-308.9340665,0.00033296,11]
[328355515,1717224635356,-500.0,0.00033296,11]
[328355516,1717224635365,-500.0,0.00033296,11]
[328355517,1717224635374,-500.0,0.00033296,11]
[328355518,1717224635383,-557.50139136,0.00033296,11]
[328355519,1717224635393,-500.0,0.00033296,11]
[328355520,1717224635402,-500.0,0.00033296,11]
[328355521,1717224635411,-500.0,0.00033296,11]
[328355522,1717224635421,-500.0,0.00033296,11]
[328355523,1717224635430,-500.0,0.00033296,11]
[328355524,1717224635439,-500.0,0.00033296,11]
[328355525,1717224635448,-500.0,0.00033296,11]
[328355526,1717224635458,-600.38479317,0.00033296,11]
[328355527,1717224635467,-500.0,0.00033296,11]
[328355528,1717224635476,-500.0,0.00033296,11]
[328355529,1717224635485,-500.0,0.00033296,11]
[328355530,1717224635494,-500.0,0.00033296,11]
[328355531,1717224635504,-500.0,0.00033296,11]
[328355532,1717224635513,-500.0,0.00033296,11]
[328355533,1717224635524,-313.37692035,0.00033296,11]
[328355534,1717224635533,-500.0,0.00033296,11]
[328355535,1717224635543,-166.86126885,0.00033296,4]
[328355536,1717224635552,-500.0,0.00033296,11]
[328355537,1717224635561,-395.96021863,0.00033296,11]
[328355538,1717224635571,-1118.54111124,0.00033296,4]
[328355539,1717224635580,-1461.78050461,0.00033296,4]
[328355540,1717224635589,-546.77712073,0.00033296,4]
[328355541,1717224635599,-455.10709089,0.00033296,11]
[328355542,1717224635608,-239.22713266,0.00033296,4]
[328355543,1717224635617,-2454.22913152,0.00033296,4]
[328355544,1717224635626,-251.84104748,0.00033296,4]
[328355545,1717224635636,-501.52499374,0.00033296,11]
[328355546,1717224635644,-522.76903774,0.00033296,4]
[328355547,1717224635653,-206.85711306,0.00033296,4]
[328355548,1717224635663,-1840.40550468,0.00033296,4]
[328355549,1717224635671,-5757.8863198,0.00033296,4]
[328355550,1717224635829,-160.42080435,0.00033296,4]
[328355551,1717224635838,-13178.92486053,0.00033296,2]
[328355552,1717224635847,-155.50271305,0.00033297,2]
[328355553,1717224635857,-155.45288962,0.00033297,4]
[328355554,1717224635866,-155.60384361,0.00033297,4]
[328355555,1717224635875,-171.16659133,0.00033297,4]
[328355556,1717224635884,-199.66165429,0.00033297,4]
[328355557,1717224635892,-156.69351189,0.00033297,4]
[328355558,1717224635903,-226.53668308,0.00033297,2]
[328355559,1717224635913,-155.91825084,0.00033297,4]
[328355560,1717224635922,-163.85648808,0.00033297,4]
[328355561,1717224635931,-530.01151077,0.00033297,4]
[328355562,1717224635940,-1000.0,0.00033297,2]
[328355563,1717224635950,-500.0,0.00033297,11]
[328355564,1717224635959,-448.53891426,0.00033297,11]
[328355565,1717224635968,-500.0,0.00033297,7]
[328355566,1717224635978,-500.0,0.00033297,7]
[328355567,1717224635989,-500.0,0.00033297,7]
[328355568,1717224635998,-500.0,0.00033297,7]
[328355569,1717224636007,-500.0,0.00033297,11]
[328355570,1717224636017,-500.0,0.00033297,11]
[328355571,1717224636027,-536.06960141,0.00033297,11]
[328355572,1717224636036,-500.0,0.00033297,11]
[328355573,1717224636045,-500.0,0.00033297,11]
[328355574,1717224636054,-500.0,0.00033297,11]
[328355575,1717224636063,-500.0,0.00033297,11]
[328355576,1717224636072,-944.11,0.00033297,11]
[328355577,1717224636082,-944.11,0.00033297,11]
[328355578,1717224636091,-944.11,0.00033297,11]
[328355579,1717224636100,-944.11,0.00033297,11]
[328355580,1717224636109,-500.0,0.00033297,11]
[328355581,1717224636123,-366.88790547,0.00033297,11]
[328355582,1717224636132,-183.406169,0.00033297,7]
[328355583,1717224636142,-183.406169,0.00033297,7]
[328355584,1717224636151,-151.0,0.00033297,7]
[328355585,1717224636160,-151.0,0.00033297,7]
[328355586,1717224636170,-341.76217119,0.00033297,7]
[328355587,1717224636179,-500.0,0.00033297,11]
[328355588,1717224636188,-500.0,0.00033297,11]
[328355589,1717224636197,-500.0,0.00033297,11]
[328355590,1717224636207,-500.0,0.00033297,11]
[328355591,1717224636216,-500.0,0.00033297,11]
[328355592,1717224636225,-960.83,0.00033297,11]
[328355593,1717224636235,-960.83,0.00033297,11]
[328355594,1717224636244,-960.83,0.00033297,11]
[328355595,1717224636254,-960.83,0.00033297,11]
[328355596,1717224636265,-500.0,0.00033297,11]
[328355597,1717224636276,-500.0,0.00033297,11]
[328355598,1717224636285,-500.0,0.00033297,11]
[328355599,1717224636295,-500.0,0.00033297,11]
[328355600,1717224636307,-500.0,0.00033297,11]
[328355601,1717224636316,-500.0,0.00033297,11]
[328355602,1717224636326,-500.0,0.00033297,11]
[328355603,1717224636335,-500.0,0.00033297,11]
[328355604,1717224636344,-500.0,0.00033297,11]
[328355605,1717224636354,-500.0,0.00033297,11]
[328355606,1717224636364,-500.0,0.00033297,11]
[328355607,1717224636373,-233.26699728,0.00033297,11]
[328355608,1717224636383,-500.0,0.00033297,11]
[328355609,1717224636392,-500.0,0.00033297,11]
[328355610,1717224636402,-500.0,0.00033297,11]
[328355611,1717224636411,-500.0,0.00033297,11]
[328355612,1717224636421,-500.0,0.00033297,11]
[328355613,1717224636430,-214.221971,0.00033297,7]
[328355614,1717224636440,-214.221971,0.00033297,7]
[328355615,1717224636450,-151.0,0.00033297,7]
[328355616,1717224636459,-500.0,0.00033297,11]
[328355617,1717224636468,-500.0,0.00033297,11]
[328355618,1717224636478,-500.0,0.00033297,11]
[328355619,1717224636487,-504.13,0.00033297,11]
[328355620,1717224636497,-399.44558036,0.00033297,11]
[328355621,1717224636507,-500.0,0.00033297,11]
[328355622,1717224636516,-500.0,0.00033297,11]
[328355623,1717224636526,-151.58042974,0.00033297,11]
[328355624,1717224636536,-500.0,0.00033297,11]
[328355625,1717224636545,-500.0,0.00033297,11]
[328355626,1717224636555,-500.0,0.00033297,11]
[328355627,1717224636564,-520.42675364,0.00033297,11]
[328355628,1717224636574,-37362.52631338,0.00033297,2]
[328355629,1717224636628,-1222.08823733,0.00033297,2]
[328355632,1717224637592,-155.0,0.00016048,2]
[328355633,1717224637602,-245.0,0.00032099,2]
[328355634,1717224637614,-115.63920563,0.00032099,2]
[328355635,1717224637624,-500.0,0.00032099,2]
[328355636,1717224637633,-155.43195346,0.00032099,2]
[328355637,1717224637645,-134.12857298,0.00032099,2]
[328355638,1717224637654,-500.0,0.00032099,2]
[328355639,1717224637664,-106.32886627,0.00032099,2]
[328355640,1717224637872,-393.67113373,0.00032099,2]
[328355642,1717224637882,-520.18156595,0.00032099,2]